[Event "*** Titled Tuesday Blitz"]
[Site "Chess.com"]
[Date "2019.10.01"]
[Round "9"]
[White "ChessLover0108"]
[Black "Jospem"]
[Result "0-1"]
[WhiteElo "2750"]
[BlackElo "2894"]
[TimeControl "180+2"]
[EndTime "15:11:43 PDT"]
[Termination "Jospem won by resignation"]

1. d4 {[%clk 0:03:01.9]} 1... Nf6 {[%clk 0:03:00.9]} 2. c4 {[%clk 0:03:03.2]}
2... e6 {[%clk 0:03:02.5]} 3. Nf3 {[%clk 0:03:04.2]} 3... b6 {[%clk 0:03:03.7]}
4. g3 {[%clk 0:03:04.9]} 4... Ba6 {[%clk 0:03:05.2]} 5. b3 {[%clk 0:03:05.9]}
5... Bb4+ {[%clk 0:03:05.1]} 6. Bd2 {[%clk 0:03:06.5]} 6... Be7 {[%clk 0:03:07]}
7. Nc3 {[%clk 0:03:05.2]} 7... c6 {[%clk 0:03:08.5]} 8. e4 {[%clk 0:03:04.3]}
8... d5 {[%clk 0:03:09.7]} 9. Bd3 {[%clk 0:03:04.8]} 9... O-O {[%clk 0:03:10]}
10. Qc2 {[%clk 0:03:03.3]} 10... h6 {[%clk 0:03:04.7]} 11. O-O-O {[%clk
0:03:00.1]} 11... dxc4 {[%clk 0:03:01.2]} 12. bxc4 {[%clk 0:02:56.4]} 12... b5
{[%clk 0:03:02.6]} 13. e5 {[%clk 0:02:35.3]} 13... bxc4 {[%clk 0:02:51.6]} 14.
Be2 {[%clk 0:01:31.3]} 14... Nd5 {[%clk 0:02:48.4]} 15. Ne4 {[%clk 0:01:31.8]}
15... Qb6 {[%clk 0:02:34.3]} 16. Bc3 {[%clk 0:01:17.6]} 16... Nd7 {[%clk
0:02:26.9]} 17. Kd2 {[%clk 0:01:12.9]} 17... c5 {[%clk 0:02:20]} 18. Rb1 {[%clk
0:01:12.4]} 18... Qc7 {[%clk 0:02:18.9]} 19. Rhd1 {[%clk 0:00:34.9]} 19... Nxc3
{[%clk 0:02:13.2]} 20. Qxc3 {[%clk 0:00:36.3]} 20... cxd4 {[%clk 0:02:11.1]} 21.
Qxd4 {[%clk 0:00:38.2]} 21... Rad8 {[%clk 0:02:04.3]} 22. Ke1 {[%clk 0:00:38.9]}
22... Nc5 {[%clk 0:01:52.5]} 23. Nd6 {[%clk 0:00:30.5]} 23... Nd3+ {[%clk
0:01:53.6]} 24. Kf1 {[%clk 0:00:21.4]} 24... Bxd6 {[%clk 0:01:52.4]} 25. exd6
{[%clk 0:00:23.3]} 25... Rxd6 {[%clk 0:01:53.8]} 26. Qe3 {[%clk 0:00:18.8]}
26... Rfd8 {[%clk 0:01:51.2]} 27. Rd2 {[%clk 0:00:13.1]} 27... Rb6 {[%clk
0:01:24]} 28. Rbd1 {[%clk 0:00:11.7]} 28... Rd5 {[%clk 0:01:16.7]} 29. Rc2
{[%clk 0:00:07.5]} 29... Qd8 {[%clk 0:01:12.1]} 30. Rdd2 {[%clk 0:00:05.5]}
30... Rb1+ {[%clk 0:01:09]} 31. Kg2 {[%clk 0:00:06.9]} 31... Qa8 {[%clk
0:00:58.1]} 32. Kh3 {[%clk 0:00:03.5]} 32... Rb6 {[%clk 0:00:45.8]} 33. Rc3
{[%clk 0:00:04]} 33... Rbd6 {[%clk 0:00:45.9]} 34. Kg2 {[%clk 0:00:04.8]} 34...
Ne1+ {[%clk 0:00:41.2]} 35. Kf1 {[%clk 0:00:06.2]} 35... Rxd2 {[%clk 0:00:39.5]}
0-1

[Event "*** Titled Tuesday Blitz"]
[Site "Chess.com"]
[Date "2019.10.01"]
[Round "9"]
[White "chess4life23"]
[Black "politeplayer"]
[Result "1-0"]
[WhiteElo "2378"]
[BlackElo "2166"]
[TimeControl "180+2"]
[EndTime "15:11:52 PDT"]
[Termination "chess4life23 won by resignation"]

1. d4 {[%clk 0:03:01.9]} 1... d5 {[%clk 0:02:53.2]} 2. c4 {[%clk 0:03:02.7]}
2... e6 {[%clk 0:02:52.5]} 3. Nc3 {[%clk 0:03:02.8]} 3... c5 {[%clk 0:02:53.7]}
4. cxd5 {[%clk 0:03:01.4]} 4... cxd4 {[%clk 0:02:55.2]} 5. Qxd4 {[%clk
0:03:02.1]} 5... Nc6 {[%clk 0:02:53.6]} 6. Qd1 {[%clk 0:03:03.1]} 6... exd5
{[%clk 0:02:54.4]} 7. Qxd5 {[%clk 0:03:03.7]} 7... Be6 {[%clk 0:02:53.7]} 8. Qb5
{[%clk 0:02:56.7]} 8... Bb4 {[%clk 0:02:46.9]} 9. e3 {[%clk 0:02:55.9]} 9... Nf6
{[%clk 0:02:30.9]} 10. Bd2 {[%clk 0:02:45.5]} 10... O-O {[%clk 0:02:26.4]} 11.
Nf3 {[%clk 0:02:46]} 11... a6 {[%clk 0:02:05.3]} 12. Qa4 {[%clk 0:02:43.4]}
12... b5 {[%clk 0:02:03.8]} 13. Qc2 {[%clk 0:02:44.3]} 13... Rc8 {[%clk
0:02:03.1]} 14. Be2 {[%clk 0:02:40.7]} 14... Bd6 {[%clk 0:01:54.9]} 15. Qb1
{[%clk 0:02:29.3]} 15... b4 {[%clk 0:01:53.4]} 16. Ne4 {[%clk 0:02:30]} 16...
Nxe4 {[%clk 0:01:45.7]} 17. Qxe4 {[%clk 0:02:31.9]} 17... Re8 {[%clk 0:01:45.8]}
18. O-O {[%clk 0:02:04.4]} 18... Bd5 {[%clk 0:01:46.4]} 19. Qf5 {[%clk
0:01:08.3]} 19... g6 {[%clk 0:01:22.2]} 20. Qh3 {[%clk 0:01:06.3]} 20... Be6
{[%clk 0:01:20.7]} 21. Qh6 {[%clk 0:01:04.9]} 21... Bf8 {[%clk 0:01:19]} 22. Qg5
{[%clk 0:00:39]} 22... Be7 {[%clk 0:01:19]} 23. Qf4 {[%clk 0:00:39.8]} 23... Bd6
{[%clk 0:01:19.5]} 24. Qg5 {[%clk 0:00:35.3]} 24... f6 {[%clk 0:01:19]} 25. Qh4
{[%clk 0:00:31.1]} 25... g5 {[%clk 0:01:19.2]} 26. Qh5 {[%clk 0:00:21.9]} 26...
Bf7 {[%clk 0:01:16.6]} 27. Qg4 {[%clk 0:00:22.8]} 27... Be6 {[%clk 0:01:02.3]}
28. Bc4 {[%clk 0:00:23.8]} 28... Bxc4 {[%clk 0:00:53.7]} 29. Qxc4+ {[%clk
0:00:25.7]} 29... Kh8 {[%clk 0:00:54]} 30. Rad1 {[%clk 0:00:27.2]} 30... Ne5
{[%clk 0:00:52.9]} 31. Nxe5 {[%clk 0:00:28.4]} 31... Rxc4 {[%clk 0:00:52.5]} 32.
Nf7+ {[%clk 0:00:29.4]} 32... Kg7 {[%clk 0:00:50.7]} 33. Nxd8 {[%clk 0:00:29.2]}
33... Rxd8 {[%clk 0:00:51.6]} 34. b3 {[%clk 0:00:28.9]} 34... Rc2 {[%clk
0:00:51.6]} 35. Bxb4 {[%clk 0:00:29.8]} 35... Bxb4 {[%clk 0:00:36.1]} 36. Rxd8
{[%clk 0:00:30.2]} 36... Rxa2 {[%clk 0:00:37.7]} 37. h3 {[%clk 0:00:27.4]} 37...
Kg6 {[%clk 0:00:38.6]} 38. Rd3 {[%clk 0:00:28.6]} 38... a5 {[%clk 0:00:38.8]}
39. g4 {[%clk 0:00:30]} 39... h5 {[%clk 0:00:37.6]} 40. Kg2 {[%clk 0:00:31]}
40... hxg4 {[%clk 0:00:37.6]} 41. hxg4 {[%clk 0:00:32.9]} 41... a4 {[%clk
0:00:36.7]} 42. bxa4 {[%clk 0:00:33]} 42... Rxa4 {[%clk 0:00:38.2]} 43. Rd4
{[%clk 0:00:34.5]} 43... f5 {[%clk 0:00:36.8]} 44. gxf5+ {[%clk 0:00:35]} 44...
Kxf5 {[%clk 0:00:37.1]} 45. Rb1 {[%clk 0:00:36.6]} 1-0

[Event "*** Titled Tuesday Blitz"]
[Site "Chess.com"]
[Date "2019.10.01"]
[Round "9"]
[White "Bucefal_M"]
[Black "NiranjanNavalgund"]
[Result "1-0"]
[WhiteElo "2300"]
[BlackElo "2401"]
[TimeControl "180+2"]
[EndTime "15:12:09 PDT"]
[Termination "Bucefal_M won by checkmate"]

1. d4 {[%clk 0:00:31.5]} 1... Nf6 {[%clk 0:02:48.4]} 2. c4 {[%clk 0:00:31.9]}
2... e5 {[%clk 0:02:48.2]} 3. dxe5 {[%clk 0:00:32.3]} 3... Ng4 {[%clk
0:02:49.3]} 4. Bf4 {[%clk 0:00:33.8]} 4... g5 {[%clk 0:02:46.1]} 5. Bg3 {[%clk
0:00:34.5]} 5... Nc6 {[%clk 0:02:47.4]} 6. Nf3 {[%clk 0:00:35.8]} 6... Bg7
{[%clk 0:02:47.8]} 7. h4 {[%clk 0:00:37.3]} 7... Ngxe5 {[%clk 0:02:42.7]} 8.
Nxe5 {[%clk 0:00:38.1]} 8... Nxe5 {[%clk 0:02:43.6]} 9. hxg5 {[%clk 0:00:31.5]}
9... Qxg5 {[%clk 0:02:45.5]} 10. Nc3 {[%clk 0:00:24.8]} 10... d6 {[%clk
0:02:37.8]} 11. e3 {[%clk 0:00:21.1]} 11... Bg4 {[%clk 0:02:36.9]} 12. Qb3
{[%clk 0:00:21.6]} 12... O-O-O {[%clk 0:02:36.7]} 13. Bh4 {[%clk 0:00:22.8]}
13... Qf5 {[%clk 0:02:37.8]} 14. Bxd8 {[%clk 0:00:22.8]} 14... Rxd8 {[%clk
0:02:39.7]} 15. f3 {[%clk 0:00:21.6]} 15... Bh5 {[%clk 0:02:27.4]} 16. O-O-O
{[%clk 0:00:17.8]} 16... Bg6 {[%clk 0:02:26.3]} 17. e4 {[%clk 0:00:18.3]} 17...
Qf4+ {[%clk 0:02:27.1]} 18. Kb1 {[%clk 0:00:19.3]} 18... f5 {[%clk 0:02:26.2]}
19. Nd5 {[%clk 0:00:20.3]} 19... Qg3 {[%clk 0:02:24.2]} 20. f4 {[%clk
0:00:15.3]} 20... Qg4 {[%clk 0:02:18.2]} 21. fxe5 {[%clk 0:00:12.1]} 21... fxe4
{[%clk 0:02:17.2]} 22. Ne7+ {[%clk 0:00:12.7]} 22... Kb8 {[%clk 0:02:17.4]} 23.
Nxg6 {[%clk 0:00:14]} 23... hxg6 {[%clk 0:02:15.7]} 24. exd6 {[%clk 0:00:10.5]}
24... cxd6 {[%clk 0:02:15.7]} 25. Qc2 {[%clk 0:00:07.8]} 25... Rc8 {[%clk
0:02:12.3]} 26. Be2 {[%clk 0:00:07.5]} 26... Qe6 {[%clk 0:02:08.3]} 27. Rh4
{[%clk 0:00:05.4]} 27... e3 {[%clk 0:02:02.3]} 28. Bg4 {[%clk 0:00:05.1]} 28...
Qf6 {[%clk 0:01:58.9]} 29. Bxc8 {[%clk 0:00:06.1]} 29... Qxh4 {[%clk 0:01:59.5]}
30. Bh3 {[%clk 0:00:07.1]} 30... Qf6 {[%clk 0:01:58.7]} 31. Re1 {[%clk
0:00:07.9]} 31... Qd4 {[%clk 0:01:59]} 32. Be6 {[%clk 0:00:07.9]} 32... g5
{[%clk 0:01:58.9]} 33. Bd5 {[%clk 0:00:09.3]} 33... Kc7 {[%clk 0:01:57.6]} 34.
Qb3 {[%clk 0:00:09.8]} 34... b6 {[%clk 0:01:58.2]} 35. Qb5 {[%clk 0:00:09.8]}
35... Qd3+ {[%clk 0:01:57.7]} 36. Ka1 {[%clk 0:00:10.7]} 36... Kd8 {[%clk
0:01:58.2]} 37. Qb3 {[%clk 0:00:05.8]} 37... Qd2 {[%clk 0:01:55.8]} 38. Rd1
{[%clk 0:00:04.8]} 38... e2 {[%clk 0:01:55.6]} 39. Rxd2 {[%clk 0:00:04.7]} 39...
e1=Q+ {[%clk 0:01:56.3]} 40. Rd1 {[%clk 0:00:06.1]} 40... Qe2 {[%clk 0:01:55.4]}
41. a3 {[%clk 0:00:07.6]} 41... Ke7 {[%clk 0:01:54.4]} 42. Kb1 {[%clk
0:00:06.7]} 42... a5 {[%clk 0:01:54.6]} 43. Qc2 {[%clk 0:00:07.5]} 43... Qe5
{[%clk 0:01:55.6]} 44. Qd2 {[%clk 0:00:08.5]} 44... Kf8 {[%clk 0:01:56.7]} 45.
Rf1+ {[%clk 0:00:08.6]} 45... Bf6 {[%clk 0:01:55.9]} 46. Qf2 {[%clk 0:00:08.8]}
46... Kg7 {[%clk 0:01:55]} 47. Qxf6+ {[%clk 0:00:09.8]} 47... Qxf6 {[%clk
0:01:56.9]} 48. Rxf6 {[%clk 0:00:11]} 48... Kxf6 {[%clk 0:01:58.8]} 49. Kc2
{[%clk 0:00:12.8]} 49... Ke5 {[%clk 0:02:00]} 50. Kd3 {[%clk 0:00:14.4]} 50...
Kf4 {[%clk 0:02:01.4]} 51. Kd4 {[%clk 0:00:14.5]} 51... g4 {[%clk 0:02:02.7]}
52. b4 {[%clk 0:00:14.7]} 52... axb4 {[%clk 0:02:03.5]} 53. axb4 {[%clk
0:00:16.6]} 53... g3 {[%clk 0:02:04.4]} 54. Kc3 {[%clk 0:00:17.8]} 54... Ke5
{[%clk 0:02:05.5]} 55. Bf3 {[%clk 0:00:18.1]} 55... Kf4 {[%clk 0:02:03.2]} 56.
Kd4 {[%clk 0:00:19.1]} 56... Kf5 {[%clk 0:02:04.6]} 57. Kd5 {[%clk 0:00:20.3]}
57... b5 {[%clk 0:02:06.1]} 58. cxb5 {[%clk 0:00:21.4]} 58... Kf4 {[%clk
0:02:06.8]} 59. Kxd6 {[%clk 0:00:22.4]} 59... Ke3 {[%clk 0:02:08.7]} 60. b6
{[%clk 0:00:24.3]} 60... Kf2 {[%clk 0:02:10.6]} 61. b7 {[%clk 0:00:25.8]} 61...
Kg1 {[%clk 0:02:12.5]} 62. b8=Q {[%clk 0:00:27.3]} 62... Kh2 {[%clk 0:02:14.4]}
63. Qh8+ {[%clk 0:00:28]} 63... Kg1 {[%clk 0:02:16.3]} 64. Qh4 {[%clk
0:00:28.7]} 64... Kf2 {[%clk 0:02:17.4]} 65. b5 {[%clk 0:00:30.5]} 65... Kg1
{[%clk 0:02:18.5]} 66. Qxg3 {[%clk 0:00:31.6]} 66... Kh1 {[%clk 0:02:19.2]} 67.
b6 {[%clk 0:00:31.7]} 67... Kg1 {[%clk 0:02:20.6]} 68. b7 {[%clk 0:00:32.9]}
68... Kf1 {[%clk 0:02:22.1]} 69. b8=Q {[%clk 0:00:32.2]} 69... Kg1 {[%clk
0:02:23.6]} 70. Qb1# {[%clk 0:00:33]} 1-0

[Event "*** Titled Tuesday Blitz"]
[Site "Chess.com"]
[Date "2019.10.01"]
[Round "9"]
[White "Alex_Terzi"]
[Black "Jumbo"]
[Result "0-1"]
[WhiteElo "2622"]
[BlackElo "2794"]
[TimeControl "180+2"]
[EndTime "15:12:14 PDT"]
[Termination "Jumbo won by resignation"]

1. e4 {[%clk 0:03:01.9]} 1... g6 {[%clk 0:03:01.9]} 2. d4 {[%clk 0:03:02.5]}
2... Bg7 {[%clk 0:03:03.4]} 3. Nc3 {[%clk 0:03:03.4]} 3... d6 {[%clk 0:03:03.2]}
4. Nf3 {[%clk 0:03:03.9]} 4... Nf6 {[%clk 0:03:02.3]} 5. h3 {[%clk 0:03:04.7]}
5... O-O {[%clk 0:03:00.5]} 6. Be3 {[%clk 0:03:05.6]} 6... c6 {[%clk 0:03:00.6]}
7. a4 {[%clk 0:03:05.7]} 7... Qc7 {[%clk 0:02:57.7]} 8. Be2 {[%clk 0:03:02]}
8... e5 {[%clk 0:02:58.8]} 9. dxe5 {[%clk 0:02:56.7]} 9... dxe5 {[%clk
0:02:59.5]} 10. O-O {[%clk 0:02:57]} 10... Re8 {[%clk 0:02:54.7]} 11. Nd2 {[%clk
0:02:51.8]} 11... Rd8 {[%clk 0:02:50.1]} 12. Bc4 {[%clk 0:02:50]} 12... Nbd7
{[%clk 0:02:34.8]} 13. Qe2 {[%clk 0:02:46.5]} 13... Nf8 {[%clk 0:02:35.3]} 14.
Rfd1 {[%clk 0:02:46.4]} 14... Be6 {[%clk 0:02:27.8]} 15. Nb3 {[%clk 0:02:40.7]}
15... b6 {[%clk 0:02:22.6]} 16. a5 {[%clk 0:02:22.3]} 16... b5 {[%clk
0:02:22.6]} 17. Bxe6 {[%clk 0:02:20.7]} 17... Nxe6 {[%clk 0:02:24.5]} 18. Rxd8+
{[%clk 0:02:13.1]} 18... Rxd8 {[%clk 0:02:25.3]} 19. Rd1 {[%clk 0:02:14.7]}
19... Rxd1+ {[%clk 0:02:13.7]} 20. Qxd1 {[%clk 0:02:15.2]} 20... b4 {[%clk
0:02:15]} 21. Na4 {[%clk 0:02:05.7]} 21... Nxe4 {[%clk 0:02:13.8]} 22. Qd3
{[%clk 0:02:01.7]} 22... Nd6 {[%clk 0:01:53.1]} 23. Bxa7 {[%clk 0:01:53]} 23...
e4 {[%clk 0:01:49.3]} 24. Qa6 {[%clk 0:01:42.8]} 24... Nb5 {[%clk 0:01:30.7]}
25. Be3 {[%clk 0:01:26.6]} 25... f5 {[%clk 0:01:18.7]} 26. Qb6 {[%clk
0:01:19.2]} 26... Qc8 {[%clk 0:01:18.8]} 27. a6 {[%clk 0:01:15.5]} 27... f4
{[%clk 0:01:20]} 28. Bc5 {[%clk 0:01:13.2]} 28... Be5 {[%clk 0:00:39.9]} 29. a7
{[%clk 0:01:07.9]} 29... f3 {[%clk 0:00:37.9]} 30. Be3 {[%clk 0:00:48.1]} 30...
Bc7 {[%clk 0:00:34.5]} 31. Nbc5 {[%clk 0:00:30.1]} 31... Qd8 {[%clk 0:00:18.4]}
32. g3 {[%clk 0:00:08.6]} 32... Bxb6 {[%clk 0:00:17.9]} 33. Nxb6 {[%clk
0:00:09]} 33... Nxa7 {[%clk 0:00:16.8]} 34. Nxe6 {[%clk 0:00:08.6]} 34... Qd1+
{[%clk 0:00:17.8]} 35. Kh2 {[%clk 0:00:10.5]} 35... Qf1 {[%clk 0:00:19.4]} 36.
Nf4 {[%clk 0:00:11.9]} 36... g5 {[%clk 0:00:19.7]} 37. Nd7 {[%clk 0:00:12.2]}
37... gxf4 {[%clk 0:00:20.4]} 38. Nf6+ {[%clk 0:00:14.1]} 38... Kf7 {[%clk
0:00:20.9]} 0-1

[Event "*** Titled Tuesday Blitz"]
[Site "Chess.com"]
[Date "2019.10.01"]
[Round "9"]
[White "Siemba"]
[Black "GelmanAlexander"]
[Result "0-1"]
[WhiteElo "2259"]
[BlackElo "2503"]
[TimeControl "180+2"]
[EndTime "15:12:24 PDT"]
[Termination "GelmanAlexander won by checkmate"]

1. e4 {[%clk 0:03:01.9]} 1... d5 {[%clk 0:03:00.6]} 2. exd5 {[%clk 0:03:02.5]}
2... Qxd5 {[%clk 0:03:00]} 3. Nc3 {[%clk 0:03:03.4]} 3... Qa5 {[%clk 0:03:00.3]}
4. d4 {[%clk 0:03:00.1]} 4... Nf6 {[%clk 0:03:01]} 5. Bc4 {[%clk 0:02:59.4]}
5... Nc6 {[%clk 0:03:01.7]} 6. Ne2 {[%clk 0:03:00]} 6... Bg4 {[%clk 0:02:40.3]}
7. f3 {[%clk 0:03:00.9]} 7... Bf5 {[%clk 0:02:35]} 8. O-O {[%clk 0:02:56.3]}
8... O-O-O {[%clk 0:02:30.1]} 9. Qe1 {[%clk 0:02:49.1]} 9... e6 {[%clk
0:01:59.6]} 10. Be3 {[%clk 0:02:43.5]} 10... Bg6 {[%clk 0:01:21.2]} 11. Kh1
{[%clk 0:02:35.3]} 11... a6 {[%clk 0:01:05.7]} 12. a3 {[%clk 0:02:27.4]} 12...
Qh5 {[%clk 0:01:03.6]} 13. Nf4 {[%clk 0:02:23.4]} 13... Qf5 {[%clk 0:00:59.1]}
14. Bd3 {[%clk 0:02:14.8]} 14... Qa5 {[%clk 0:00:22.7]} 15. b4 {[%clk
0:02:14.7]} 15... Qb6 {[%clk 0:00:20]} 16. d5 {[%clk 0:02:14.7]} 16... Nd4
{[%clk 0:00:21.5]} 17. dxe6 {[%clk 0:02:06]} 17... fxe6 {[%clk 0:00:16.5]} 18.
Bxd4 {[%clk 0:01:48.1]} 18... Qxd4 {[%clk 0:00:12.8]} 19. Nxe6 {[%clk
0:01:47.1]} 19... Qb6 {[%clk 0:00:06.2]} 20. Nxd8 {[%clk 0:01:45.9]} 20... Kxd8
{[%clk 0:00:07.7]} 21. Rd1 {[%clk 0:01:36.8]} 21... Bd6 {[%clk 0:00:08]} 22. Ne4
{[%clk 0:01:33.6]} 22... Bxe4 {[%clk 0:00:07.3]} 23. Bxe4 {[%clk 0:01:34.3]}
23... Kc8 {[%clk 0:00:09.2]} 24. c4 {[%clk 0:01:30.6]} 24... Bf4 {[%clk
0:00:06.5]} 25. c5 {[%clk 0:01:26.1]} 25... Qb5 {[%clk 0:00:08]} 26. Qh4 {[%clk
0:01:19.3]} 26... g5 {[%clk 0:00:08.4]} 27. Qh3+ {[%clk 0:01:17.3]} 27... Kb8
{[%clk 0:00:09.3]} 28. Qe6 {[%clk 0:01:16.3]} 28... Nh5 {[%clk 0:00:09.2]} 29.
c6 {[%clk 0:01:04.1]} 29... b6 {[%clk 0:00:08.6]} 30. Qe7 {[%clk 0:01:00.8]}
30... Qe2 {[%clk 0:00:05.2]} 31. Rde1 {[%clk 0:00:33.7]} 31... Qb2 {[%clk
0:00:05.8]} 32. Bd5 {[%clk 0:00:29.7]} 32... Nf6 {[%clk 0:00:03.8]} 33. Re2
{[%clk 0:00:27.8]} 33... Qd4 {[%clk 0:00:04.2]} 34. Be4 {[%clk 0:00:21.5]} 34...
h5 {[%clk 0:00:05.1]} 35. Qg7 {[%clk 0:00:18.7]} 35... Rg8 {[%clk 0:00:05.3]}
36. Qf7 {[%clk 0:00:18.3]} 36... h4 {[%clk 0:00:06.2]} 37. Bf5 {[%clk
0:00:18.3]} 37... Rh8 {[%clk 0:00:07.4]} 38. Re6 {[%clk 0:00:15.6]} 38... Nh5
{[%clk 0:00:07.6]} 39. Re8+ {[%clk 0:00:14.9]} 39... Ka7 {[%clk 0:00:08.8]} 40.
Rxh8 {[%clk 0:00:14.7]} 40... Qxh8 {[%clk 0:00:10.7]} 41. Rd1 {[%clk 0:00:12.4]}
41... Ng3+ {[%clk 0:00:12]} 42. Kg1 {[%clk 0:00:12.8]} 42... Be3# {[%clk
0:00:13.2]} 0-1

[Event "*** Titled Tuesday Blitz"]
[Site "Chess.com"]
[Date "2019.10.01"]
[Round "9"]
[White "Alexander_Moskalenko"]
[Black "Zubrrr"]
[Result "0-1"]
[WhiteElo "2875"]
[BlackElo "2742"]
[TimeControl "180+2"]
[EndTime "15:12:28 PDT"]
[Termination "Zubrrr won by checkmate"]

1. c4 {[%clk 0:02:36.4]} 1... f5 {[%clk 0:03:00.2]} 2. g3 {[%clk 0:02:37]} 2...
Nf6 {[%clk 0:02:59.9]} 3. Bg2 {[%clk 0:02:38.9]} 3... g6 {[%clk 0:03:00.6]} 4.
d3 {[%clk 0:02:38.7]} 4... Bg7 {[%clk 0:03:01.9]} 5. Nc3 {[%clk 0:02:40.6]} 5...
O-O {[%clk 0:03:02.5]} 6. e3 {[%clk 0:02:39.2]} 6... e5 {[%clk 0:03:02.5]} 7.
Nge2 {[%clk 0:02:38.3]} 7... d6 {[%clk 0:02:57.1]} 8. O-O {[%clk 0:02:40.2]}
8... c6 {[%clk 0:02:58.1]} 9. b3 {[%clk 0:02:39.2]} 9... Be6 {[%clk 0:02:56.7]}
10. Bb2 {[%clk 0:02:41.1]} 10... Qc7 {[%clk 0:02:54.7]} 11. Qd2 {[%clk
0:02:41.1]} 11... Nbd7 {[%clk 0:02:55.6]} 12. Rae1 {[%clk 0:02:40.2]} 12... Rae8
{[%clk 0:02:47.3]} 13. h3 {[%clk 0:02:40.9]} 13... g5 {[%clk 0:02:13]} 14. f4
{[%clk 0:02:34.8]} 14... h6 {[%clk 0:02:03.4]} 15. Kh2 {[%clk 0:02:31]} 15...
Kh7 {[%clk 0:01:58.5]} 16. e4 {[%clk 0:02:26.8]} 16... gxf4 {[%clk 0:01:21.7]}
17. gxf4 {[%clk 0:02:28.7]} 17... fxe4 {[%clk 0:01:17.9]} 18. Nxe4 {[%clk
0:02:29.2]} 18... Nh5 {[%clk 0:01:07.2]} 19. N4g3 {[%clk 0:01:56.9]} 19... Nxg3
{[%clk 0:00:50.2]} 20. Nxg3 {[%clk 0:01:58.8]} 20... exf4 {[%clk 0:00:46.6]} 21.
Be4+ {[%clk 0:01:59]} 21... Kg8 {[%clk 0:00:44.2]} 22. Nh5 {[%clk 0:01:57.5]}
22... Bxb2 {[%clk 0:00:25.2]} 23. Rg1+ {[%clk 0:01:40.2]} 23... Kh8 {[%clk
0:00:26.2]} 24. Qxb2+ {[%clk 0:01:34.6]} 24... Ne5 {[%clk 0:00:27.4]} 25. d4
{[%clk 0:01:30.1]} 25... d5 {[%clk 0:00:28.2]} 26. Rg7 {[%clk 0:01:10.4]} 26...
Rf7 {[%clk 0:00:21.7]} 27. dxe5 {[%clk 0:00:54]} 27... dxe4 {[%clk 0:00:20.2]}
28. Rg6 {[%clk 0:00:50.5]} 28... e3 {[%clk 0:00:17.4]} 29. Rxh6+ {[%clk
0:00:47.3]} 29... Rh7 {[%clk 0:00:18.4]} 30. Rxh7+ {[%clk 0:00:48.6]} 30... Qxh7
{[%clk 0:00:19.4]} 31. Nxf4 {[%clk 0:00:50.1]} 31... Qe4 {[%clk 0:00:19.1]} 32.
Ng2 {[%clk 0:00:41.6]} 32... Rg8 {[%clk 0:00:15.6]} 33. Qe2 {[%clk 0:00:41.4]}
33... Qxe5+ {[%clk 0:00:14.6]} 34. Kh1 {[%clk 0:00:34.9]} 34... Bxh3 {[%clk
0:00:16.1]} 35. Nxe3 {[%clk 0:00:34.2]} 35... Qe4+ {[%clk 0:00:16.3]} 36. Kh2
{[%clk 0:00:35.4]} 36... Qf4+ {[%clk 0:00:12.7]} 37. Kh1 {[%clk 0:00:34.6]}
37... Qe4+ {[%clk 0:00:14.1]} 38. Kh2 {[%clk 0:00:34.4]} 38... Qh4 {[%clk
0:00:10.9]} 39. Qb2+ {[%clk 0:00:20.2]} 39... Kh7 {[%clk 0:00:11.3]} 40. Rg1
{[%clk 0:00:05.5]} 40... Bg2# {[%clk 0:00:11]} 0-1

[Event "*** Titled Tuesday Blitz"]
[Site "Chess.com"]
[Date "2019.10.01"]
[Round "9"]
[White "eldur16"]
[Black "albi1999"]
[Result "1-0"]
[WhiteElo "2634"]
[BlackElo "2534"]
[TimeControl "180+2"]
[EndTime "15:12:29 PDT"]
[Termination "eldur16 won by resignation"]

1. e4 {[%clk 0:03:01.9]} 1... e5 {[%clk 0:02:53.1]} 2. Nf3 {[%clk 0:03:02.1]}
2... Nc6 {[%clk 0:02:53.6]} 3. Bb5 {[%clk 0:03:03]} 3... a6 {[%clk 0:02:53.8]}
4. Ba4 {[%clk 0:03:04.1]} 4... Nf6 {[%clk 0:02:53.2]} 5. O-O {[%clk 0:03:05]}
5... Be7 {[%clk 0:02:51.1]} 6. Re1 {[%clk 0:03:05.7]} 6... b5 {[%clk 0:02:52.1]}
7. Bb3 {[%clk 0:03:05.9]} 7... d6 {[%clk 0:02:54]} 8. c3 {[%clk 0:03:06.3]} 8...
O-O {[%clk 0:02:52.3]} 9. d4 {[%clk 0:03:07.1]} 9... Bg4 {[%clk 0:02:51.3]} 10.
d5 {[%clk 0:03:08.1]} 10... Na5 {[%clk 0:02:52.2]} 11. Bc2 {[%clk 0:03:09.3]}
11... Qc8 {[%clk 0:02:53.3]} 12. h3 {[%clk 0:03:09.9]} 12... Bd7 {[%clk
0:02:52.4]} 13. Nbd2 {[%clk 0:03:10.6]} 13... c6 {[%clk 0:02:52.7]} 14. dxc6
{[%clk 0:03:05.4]} 14... Qxc6 {[%clk 0:02:53.5]} 15. Nf1 {[%clk 0:03:04.9]}
15... Nc4 {[%clk 0:02:53.3]} 16. Ng3 {[%clk 0:03:05]} 16... Rfe8 {[%clk
0:02:39.8]} 17. a4 {[%clk 0:03:03.7]} 17... h6 {[%clk 0:02:39.6]} 18. Nh4 {[%clk
0:02:43.7]} 18... Bf8 {[%clk 0:02:39]} 19. Nhf5 {[%clk 0:02:44.3]} 19... Kh7
{[%clk 0:02:34.8]} 20. Qf3 {[%clk 0:02:42]} 20... Ng8 {[%clk 0:02:30.3]} 21. Nh5
{[%clk 0:02:28.8]} 21... Be6 {[%clk 0:02:21.2]} 22. axb5 {[%clk 0:01:45.3]}
22... axb5 {[%clk 0:02:20]} 23. Rxa8 {[%clk 0:01:45.4]} 23... Rxa8 {[%clk
0:02:16.5]} 24. b3 {[%clk 0:01:44.6]} 24... Nb6 {[%clk 0:02:06]} 25. Bd2 {[%clk
0:01:37.5]} 25... Nd7 {[%clk 0:02:06]} 26. b4 {[%clk 0:01:30.4]} 26... g6 {[%clk
0:02:02.9]} 27. Nhg3 {[%clk 0:01:20.4]} 27... Ra2 {[%clk 0:02:00.6]} 28. Ne3
{[%clk 0:01:18.9]} 28... Nb6 {[%clk 0:01:50.1]} 29. Qd1 {[%clk 0:01:10.2]} 29...
Nf6 {[%clk 0:01:43.3]} 30. Bb1 {[%clk 0:01:00.6]} 30... Ra7 {[%clk 0:01:42.1]}
31. Bd3 {[%clk 0:00:58.9]} 31... Nc4 {[%clk 0:01:35.9]} 32. Nxc4 {[%clk
0:00:58.5]} 32... Bxc4 {[%clk 0:01:36.6]} 33. Qf3 {[%clk 0:00:59.4]} 33... Bxd3
{[%clk 0:01:34.2]} 34. Qxd3 {[%clk 0:00:56.1]} 34... Bg7 {[%clk 0:01:28.1]} 35.
f3 {[%clk 0:00:54.4]} 35... d5 {[%clk 0:01:26.5]} 36. exd5 {[%clk 0:00:54.6]}
36... Qxd5 {[%clk 0:01:28.4]} 37. Qe3 {[%clk 0:00:47]} 37... Rd7 {[%clk
0:01:28.1]} 38. Re2 {[%clk 0:00:46.3]} 38... Re7 {[%clk 0:01:13.4]} 39. Be1
{[%clk 0:00:44.5]} 39... Nd7 {[%clk 0:01:12.4]} 40. h4 {[%clk 0:00:41.1]} 40...
h5 {[%clk 0:01:10]} 41. Ne4 {[%clk 0:00:40.9]} 41... f6 {[%clk 0:01:09.3]} 42.
Rd2 {[%clk 0:00:37.5]} 42... Qc6 {[%clk 0:01:09.4]} 43. Rd6 {[%clk 0:00:37.5]}
43... Qc7 {[%clk 0:01:10.5]} 44. Qd3 {[%clk 0:00:37.2]} 44... Rf7 {[%clk
0:01:01]} 45. Qxb5 {[%clk 0:00:35.5]} 45... Kg8 {[%clk 0:00:47.4]} 46. Qd5
{[%clk 0:00:35.8]} 46... Kf8 {[%clk 0:00:46.3]} 47. b5 {[%clk 0:00:33.6]} 47...
Re7 {[%clk 0:00:41.1]} 48. Bf2 {[%clk 0:00:33]} 48... f5 {[%clk 0:00:40]} 49. b6
{[%clk 0:00:33.3]} 49... Qc8 {[%clk 0:00:29.5]} 50. Ng5 {[%clk 0:00:34.1]} 50...
Nf6 {[%clk 0:00:25.7]} 51. Rd8+ {[%clk 0:00:34.4]} 1-0